bitfinex/quotes_ETHUSD_20251025
["timestamp","ask_amount","ask_price","bid_price","bid_amount"]
[1761394345531,11.45033121,3954.6,3954.5,0.002]
[1761394345735,17.84033121,3954.6,3954.5,0.002]
[1761394345928,20.15755787,3954.6,3954.5,0.002]
[1761394346116,13.39700741,3954.6,3954.5,0.002]
[1761394346317,16.97655787,3954.6,3954.5,0.002]
[1761394346498,20.15855787,3954.6,3954.5,0.002]
[1761394349909,20.28495787,3954.6,3954.5,0.002]
[1761394350713,20.38624228,3954.6,3954.5,0.002]
[1761394354766,17.20424228,3954.6,3954.5,0.002]
[1761394354930,20.38624228,3954.6,3954.5,0.002]
[1761394355327,3.03583655,3954.2,3954.1,0.002]
[1761394355566,18.20169067,3954.2,3954.1,0.002]
[1761394355770,18.30069067,3954.2,3954.1,0.002]
[1761394356066,18.53119067,3954.2,3954.1,0.002]
[1761394356842,19.33171053,3954.2,3954.1,0.002]
[1761394362355,19.23371053,3954.2,3954.1,0.002]
[1761394362750,20.14137437,3954.2,3954.1,0.002]
[1761394363745,20.24037437,3954.2,3954.1,0.002]
[1761394364079,19.23371053,3954.2,3954.1,0.002]
[1761394364466,20.14262203,3954.2,3954.1,0.002]
[1761394365374,19.36111053,3954.2,3954.1,0.002]
[1761394365973,16.17711053,3954.2,3954.1,0.002]
[1761394366161,19.36011053,3954.2,3954.1,0.002]
[1761394366348,19.45911053,3954.2,3954.1,0.002]
[1761394366551,16.27611053,3954.2,3954.1,0.002]
[1761394366868,19.45911053,3954.2,3954.1,0.002]
[1761394367246,19.36011053,3954.2,3954.1,0.002]
[1761394371195,11.79704021,3954.2,3954.1,0.002]
[1761394371395,11.79704021,3954.2,3954.1,0.6484]
[1761394371396,12.47547439,3954.2,3954.1,0.6484]
[1761394371689,14.74854021,3954.2,3954.1,0.6484]
[1761394372052,19.12861053,3954.2,3954.1,0.002]
[1761394372252,19.10121053,3954.2,3954.1,0.002]
[1761394372490,20.56600996,3954.2,3954.1,0.002]
[1761394373591,19.20250186,3954.2,3954.1,0.002]
[1761394373993,19.20250186,3954.2,3953.3,0.002]
[1761394373994,2.5294683,3953.4,3953.3,0.002]
[1761394374294,11.3834969,3953.4,3953.3,0.002]
[1761394374493,13.6606683,3953.4,3953.3,0.002]
[1761394375378,10.4746683,3953.4,3953.3,0.002]
[1761394375694,13.6606683,3953.4,3953.3,0.4298]
[1761394375895,15.41333641,3953.4,3953.3,0.4298]
[1761394376089,15.92021641,3953.4,3953.3,0.002]
[1761394376276,15.92021641,3953.4,3953.3,0.4298]
[1761394377075,9.02433641,3953.4,3953.3,0.4298]
[1761394378293,9.02433641,3953.4,3953.3,0.002]
[1761394378462,9.02433641,3953.4,3953.3,0.4298]
[1761394379670,9.45413641,3953.4,3953.3,0.4298]
[1761394380086,9.45413641,3953.4,3953.3,0.002]
[1761394382186,9.58053641,3953.4,3953.3,0.002]
[1761394383667,9.58053641,3953.4,3952.0,0.4385]
[1761394383668,2.06208,3953.3,3952.0,0.4385]
[1761394383916,3.69588,3953.2,3952.2,0.4385]
[1761394384218,2.53006823,3952.5,3952.2,0.4385]
[1761394384499,1.5552,3952.5,3952.2,0.4385]
[1761394385007,0.75982164,3952.5,3952.2,0.4385]
[1761394386202,3.28987723,3952.5,3952.2,0.4385]
[1761394386371,2.53005559,3952.5,3952.2,0.4385]
[1761394387203,2.53005559,3952.5,3951.8,2.53047037]
[1761394387381,2.52996081,3952.7,3952.3,0.4385]
[1761394387571,2.53000149,3952.6,3952.3,0.4385]
[1761394387897,4.08506644,3952.8,3952.3,0.4385]
[1761394388102,2.52986644,3952.8,3952.3,0.4385]
[1761394388608,2.5298966,3952.8,3952.3,0.4385]
[1761394388812,3.189,3952.9,3952.3,0.4385]
[1761394389688,2.5298695,3952.8,3952.3,0.4385]
[1761394390119,2.52992766,3952.7,3952.3,0.4385]
[1761394390405,2.52986398,3952.8,3952.3,0.4385]
[1761394390784,0.50688,3953.2,3952.3,0.4385]
[1761394390785,2.06208,3953.2,3952.3,0.4385]
[1761394390985,2.52986905,3952.8,3952.3,0.4385]
[1761394393705,0.1264,3952.4,3952.3,0.4385]
[1761394404726,0.1264,3952.4,3952.3,2.9686723]
[1761394409536,2.52955019,3953.3,3952.6,2.52996474]
[1761394409713,0.1264,3952.7,3952.6,2.52996474]
[1761394410512,0.1264,3952.7,3952.6,3.00426474]
[1761394412410,0.1264,3952.7,3952.6,3.02956454]
[1761394412612,0.9088286,3953.5,3952.9,2.52976314]
[1761394412812,0.9088286,3953.6,3953.0,5.71470469]
[1761394413052,0.48017613,3953.5,3953.0,3.185]
[1761394413338,0.1264,3953.1,3953.0,3.185]
[1761394413536,0.1264,3953.1,3953.0,5.71472426]
[1761394413908,0.1264,3953.1,3953.0,6.18902426]
[1761394418165,0.1264,3953.1,3953.0,3.185]
[1761394418460,0.1264,3953.1,3952.8,3.184]
[1761394418656,2.52964059,3953.2,3952.8,3.184]
[1761394418856,0.1264,3952.9,3952.8,3.184]
[1761394425256,0.1264,3952.9,3952.8,6.14225225]
[1761394426675,0.1264,3952.9,3952.8,3.6124]
[1761394427250,0.1264,3952.9,3952.8,6.14225225]
[1761394430355,0.1264,3952.9,3952.8,3.6124]
[1761394432465,0.1264,3952.9,3952.8,3.184]
[1761394434784,0.1264,3952.9,3952.8,3.6124]
[1761394437573,0.1264,3952.9,3952.8,3.184]
[1761394437778,0.1264,3952.9,3952.8,3.6124]
[1761394438874,0.1264,3952.9,3952.8,3.6144]
[1761394439961,0.1264,3952.9,3952.8,6.14425225]
[1761394442375,0.1264,3952.9,3952.8,3.6144]
[1761394443355,0.1264,3952.9,3952.8,6.14425225]
[1761394444852,0.1264,3952.9,3952.8,6.15785225]
[1761394451893,0.1264,3952.9,3952.8,3.628]
[1761394452298,0.1264,3952.9,3952.8,6.15785225]
[1761394453999,0.1264,3952.9,3952.8,3.628]
[1761394454679,0.1264,3952.9,3952.8,3.186]
[1761394456570,0.1264,3952.9,3952.8,5.71585225]
[1761394456894,0.1264,3952.9,3952.8,6.18685225]
[1761394459474,0.001,3953.3,3953.2,2.52959627]
[1761394459675,0.1274,3953.3,3953.2,3.179]
[1761394459895,0.1274,3953.3,3953.2,3.65]
[1761394460887,0.1274,3953.3,3953.2,6.17959627]
[1761394471228,0.001,3953.3,3953.2,6.17959627]
[1761394471396,0.001,3953.3,3953.2,7.44446727]
[1761394473211,0.001,3953.3,3953.2,7.57086727]
[1761394476207,0.001,3953.3,3953.2,11.15577603]
[1761394478042,0.001,3953.3,3953.2,11.28217603]
[1761394478746,0.001,3953.3,3953.2,7.69726727]
[1761394483344,0.001,3953.3,3953.2,7.57086727]
[1761394483549,0.001,3953.3,3953.2,7.44446727]
[1761394483749,0.001,3953.3,3953.2,6.17959627]
[1761394486549,0.001,3953.3,3953.2,5.70859627]
[1761394488064,0.001,3953.3,3953.2,6.17179627]
[1761394488647,0.001,3953.3,3953.2,5.70859627]
[1761394488951,0.001,3953.3,3953.2,6.17179627]
[1761394490235,0.001,3953.3,3953.2,5.70859627]
[1761394490555,0.001,3953.3,3953.2,6.17179627]
[1761394491155,0.001,3953.3,3953.2,5.70859627]
[1761394491529,0.1274,3953.3,3953.2,5.70859627]
[1761394495947,0.1274,3953.3,3953.2,3.179]
[1761394496147,0.2507,3953.3,3953.2,3.179]
[1761394497774,0.2507,3953.3,3953.2,5.70859627]
[1761394498174,0.2507,3953.3,3953.2,3.179]
[1761394498782,0.2507,3953.3,3953.2,5.70859627]
[1761394498948,0.1274,3953.3,3953.2,5.70859627]
[1761394501669,0.1274,3953.3,3953.2,6.14559627]
[1761394501872,0.1274,3953.3,3953.2,5.70859627]
[1761394502076,0.1274,3953.3,3953.2,6.14559627]
[1761394503662,0.1274,3953.3,3953.2,5.70859627]
[1761394503871,0.1274,3953.3,3953.2,3.179]
[1761394504090,0.1274,3953.3,3953.2,5.70859627]
[1761394504967,0.1274,3953.3,3953.2,6.14559627]
[1761394506707,0.1274,3953.3,3953.2,5.70859627]
[1761394507474,0.1274,3953.3,3953.2,6.14559627]
[1761394509208,0.001,3953.3,3953.2,6.14559627]
[1761394509376,0.001,3953.3,3953.2,7.03598406]
[1761394511113,0.001,3953.3,3953.2,7.16238406]
[1761394512605,0.001,3953.3,3953.2,7.19918406]
[1761394512811,0.001,3953.3,3953.2,6.18239627]
[1761394514423,0.001,3953.3,3953.2,5.70859627]
[1761394515235,0.001,3953.3,3953.2,6.18239627]
[1761394518431,0.001,3953.3,3953.2,3.179]
[1761394518729,0.1274,3953.3,3953.2,3.179]
[1761394518904,0.1274,3953.3,3953.2,5.70859627]
[1761394520032,0.1274,3953.3,3953.2,6.18239627]
[1761394521241,0.1274,3953.3,3953.2,5.70859627]
[1761394525438,0.1274,3953.3,3953.2,3.179]
[1761394526722,0.2507,3953.3,3953.1,0.002]
[1761394526917,0.2507,3953.3,3953.2,3.177]
[1761394527131,0.60467057,3953.3,3953.2,3.177]
[1761394527342,0.2507,3953.3,3953.2,3.177]
[1761394528039,0.2507,3953.3,3953.1,0.002]
[1761394528243,0.1233,3953.2,3953.1,0.002]
[1761394529535,4.96781016,3953.2,3953.1,0.002]
[1761394529741,2.43821389,3953.2,3953.1,0.002]
[1761394529966,5.73026717,3953.2,3953.1,0.002]
[1761394530130,3.2006709,3953.2,3953.1,0.002]
[1761394530460,5.73026717,3953.2,3953.1,0.002]
[1761394532267,5.68026717,3953.2,3953.1,0.002]
[1761394536338,6.18714717,3953.2,3953.1,0.002]
[1761394541472,5.55696717,3953.2,3953.1,0.002]
[1761394541865,5.55796717,3953.2,3953.1,0.002]
[1761394542659,3.0283709,3953.2,3953.1,0.002]
[1761394545567,2.26591389,3953.2,3953.1,0.4766]
[1761394546077,1.5062,3953.2,3953.1,0.4766]
[1761394546246,0.001,3953.2,3953.1,0.4766]
[1761394546575,0.001,3953.2,3953.1,0.713]
[1761394547068,0.1274,3953.2,3953.1,0.713]
[1761394548280,0.1274,3953.2,3953.1,3.24266026]
[1761394553495,0.1274,3953.2,3953.1,4.13790213]
[1761394561725,0.1274,3953.2,3953.1,3.66330213]
[1761394561926,0.1274,3953.2,3953.1,2.76806026]
[1761394562627,0.1274,3953.2,3953.1,2.53166026]
[1761394563005,0.1274,3953.2,3953.1,3.19976026]
[1761394565125,0.001,3953.2,3953.1,3.19976026]
[1761394566819,0.001,3953.2,3953.1,3.32716026]
[1761394569307,0.001,3953.2,3953.1,4.23085213]
[1761394573042,0.001,3953.2,3953.1,3.99465213]
[1761394573233,0.001,3953.2,3953.1,3.56275213]
[1761394575628,0.001,3953.2,3953.1,4.02245213]
[1761394576243,0.001,3953.2,3953.1,3.56275213]
[1761394578847,0.001,3953.2,3953.1,4.02245213]
[1761394582030,0.001,3953.2,3953.1,3.56275213]
[1761394582433,0.001,3953.2,3953.1,5.83606026]
[1761394584762,0.001,3953.2,3953.1,0.1294]
[1761394584922,0.001,3953.2,3953.1,0.002]
[1761394584923,0.1243,3953.2,3953.1,0.002]
[1761394586575,4.59267627,3953.2,3953.1,0.002]
[1761394586728,5.62254884,3953.2,3953.1,0.002]
[1761394586927,6.38234931,3953.2,3953.1,0.002]
[1761394589468,7.06386479,3953.2,3953.1,0.002]
[1761394592365,6.38234931,3953.2,3953.1,0.002]
[1761394592872,7.06386479,3953.2,3953.1,0.002]
[1761394593357,7.29117791,3953.2,3953.1,0.002]
[1761394596271,6.38234931,3953.2,3953.1,0.002]
[1761394596675,6.50874931,3953.2,3953.1,0.002]
[1761394597391,7.4154632,3953.2,3953.1,0.002]
[1761394597794,6.50874931,3953.2,3953.1,0.002]
[1761394598022,12.89874931,3953.2,3953.1,0.002]
[1761394599810,12.77234931,3953.2,3953.1,0.002]
[1761394600771,17.15475893,3953.2,3953.1,0.002]
[1761394601497,18.51379161,3953.2,3953.1,0.002]
[1761394604336,21.69179161,3953.2,3953.1,0.002]
[1761394605420,18.51379161,3953.2,3953.1,0.002]
[1761394605614,21.69279161,3953.2,3953.1,0.002]
[1761394607028,22.40126788,3953.2,3953.1,0.002]
[1761394608617,21.0422352,3953.2,3953.1,0.002]
[1761394608823,20.33375893,3953.2,3953.1,0.002]
[1761394609235,20.33275893,3953.2,3953.1,0.002]
[1761394609795,20.45915893,3953.2,3953.1,0.002]
[1761394610602,2.52978825,3952.9,3952.8,0.002]
[1761394610809,7.89626825,3952.9,3952.8,0.002]
[1761394611032,8.01956825,3952.9,3952.8,0.002]
[1761394611329,8.97453389,3952.5,3952.3,0.002]
[1761394611628,19.56328728,3952.5,3952.3,0.002]
[1761394611926,19.68968728,3952.5,3952.3,0.002]
[1761394612132,19.79102583,3952.5,3952.3,0.002]
[1761394614328,21.15095395,3952.5,3952.3,0.002]
[1761394614726,21.85943022,3952.5,3952.3,0.002]
[1761394614926,21.86104938,3952.5,3952.3,0.002]
[1761394615312,20.4995021,3952.5,3952.3,0.002]
[1761394616024,23.1645021,3952.5,3952.3,0.002]
[1761394616214,20.4995021,3952.5,3952.3,0.002]
[1761394617115,20.10834115,3952.5,3952.3,0.002]
[1761394618540,4.5922523,3952.3,3951.6,0.002]
[1761394618911,6.6599631,3952.3,3951.6,0.002]
[1761394619207,6.76131526,3952.3,3951.6,0.002]
[1761394619724,4.59263646,3951.7,3951.6,0.002]
[1761394619909,18.08837729,3951.7,3951.6,0.002]
[1761394620538,15.34827729,3951.7,3951.6,0.002]
[1761394620735,15.47157729,3951.7,3951.6,0.002]
[1761394621305,13.65481865,3951.7,3951.6,0.002]
[1761394622410,10.47381865,3951.7,3951.6,0.002]
[1761394622610,13.65481865,3951.7,3951.6,0.002]
[1761394624345,2.5314533,3950.3,3950.2,0.2279]
[1761394624546,4.5935333,3950.3,3950.2,0.2279]
[1761394624714,4.5935333,3950.3,3950.2,0.6968]
[1761394625043,0.68057251,3950.9,3950.2,3.2282993]
[1761394625211,0.7602491,3950.4,3950.3,1.0448901]
[1761394625406,2.53094114,3951.1,3950.3,0.4689]
[1761394625726,2.53094114,3951.1,3950.4,0.4689]
[1761394625727,2.53110795,3950.9,3950.4,0.4689]
[1761394627120,1.5552,3950.8,3950.4,0.4689]
[1761394629830,0.1264,3950.5,3950.4,0.4689]
[1761394631037,0.1264,3950.5,3950.4,0.438]
[1761394631038,2.06208,3950.5,3950.4,0.438]
[1761394631856,4.59340514,3950.5,3950.4,0.438]
[1761394637367,2.06208,3950.5,3950.4,0.438]
[1761394637570,4.59340514,3950.5,3950.4,0.438]
[1761394640065,4.59340514,3950.5,3950.2,0.2279]
[1761394640259,4.59340514,3950.5,3950.4,0.438]
[1761394641041,4.71980514,3950.5,3950.4,0.438]
[1761394644845,2.18848,3950.5,3950.4,0.438]
[1761394645180,0.1264,3950.5,3950.4,0.438]
[1761394645380,0.1264,3950.5,3950.4,2.96938922]
[1761394645680,0.1264,3950.5,3950.4,3.28911814]
[1761394648450,0.6804336,3951.2,3950.9,2.53105083]
[1761394648677,0.6804336,3951.4,3951.1,0.2284]
[1761394648872,0.6804336,3951.4,3951.2,0.438]
[1761394649072,0.1264,3951.3,3951.2,0.438]
[1761394650664,0.1274,3951.3,3951.2,0.438]
[1761394654596,0.1274,3951.3,3951.2,2.96887669]
[1761394654790,0.1274,3951.3,3951.2,0.438]
[1761394657000,0.1274,3951.3,3951.2,2.96887669]
[1761394657870,0.1274,3951.3,3951.2,6.14787669]
[1761394659177,0.1274,3951.3,3951.2,3.617]
[1761394660682,0.1274,3951.3,3951.2,6.14787669]
[1761394661279,0.001,3951.3,3951.2,7.11460414]
[1761394661673,0.001,3951.3,3951.2,7.87448352]
[1761394680722,0.001,3951.3,3951.2,7.11460414]
[1761394681268,0.001,3951.3,3951.2,7.24100414]
[1761394686128,0.001,3951.3,3951.2,7.11460414]
[1761394688234,0.001,3951.3,3951.2,6.67660414]
[1761394688459,0.001,3951.3,3951.2,7.15050414]
[1761394697363,0.001,3951.3,3951.2,9.38391011]
[1761394699735,0.001,3951.3,3951.2,9.89079011]
[1761394700157,0.001,3951.3,3951.2,9.99207708]
[1761394702262,0.001,3951.3,3951.2,9.31387111]
[1761394704272,0.001,3951.3,3951.2,9.44027111]
[1761394705174,0.001,3951.3,3951.2,10.11929549]
[1761394709176,0.001,3951.3,3951.2,9.44027111]
[1761394709966,0.001,3951.3,3951.2,10.34609067]
[1761394710166,0.001,3951.3,3951.2,9.44027111]
[1761394712480,0.001,3951.3,3951.2,8.83110414]
[1761394719400,0.001,3951.3,3951.2,5.65310414]
[1761394719695,0.001,3951.3,3951.2,8.83110414]
[1761394722701,0.001,3951.3,3951.2,13.21067126]
[1761394723204,0.001,3951.3,3951.2,14.11649082]
[1761394727105,0.001,3951.3,3951.2,13.21067126]
[1761394728302,0.001,3951.3,3951.2,13.71755126]
[1761394728680,0.001,3951.3,3951.2,13.81883823]
[1761394730101,0.001,3951.3,3951.2,13.69243823]
[1761394730302,0.001,3951.3,3951.2,13.81883823]
[1761394735178,0.001,3951.3,3951.2,10.64083823]
[1761394735384,0.001,3951.3,3951.2,6.64024842]
[1761394735609,0.001,3951.3,3951.2,9.81724842]
[1761394737323,0.001,3951.3,3951.2,5.17920414]
[1761394737505,0.001,3951.3,3951.2,7.38947669]
[1761394738883,0.001,3951.3,3951.2,7.82167669]
[1761394739083,0.001,3951.3,3951.2,7.38947669]
[1761394741316,0.001,3951.3,3951.2,7.57367669]
[1761394742308,0.001,3951.3,3951.2,8.01537669]
[1761394742514,0.001,3951.3,3951.2,9.66586594]
[1761394742713,0.001,3951.3,3951.2,14.04543306]
[1761394744607,0.001,3951.3,3951.2,13.60373306]
[1761394746510,0.001,3951.3,3951.2,13.41953306]
[1761394747294,0.001,3951.3,3951.2,14.77929037]
[1761394748445,0.001,3951.3,3951.2,13.41953306]
[1761394748997,0.001,3951.3,3951.2,14.77929037]
[1761394749415,0.001,3951.3,3951.2,13.41953306]
[1761394752641,0.001,3951.3,3951.2,14.32688767]
[1761394758676,0.001,3951.3,3951.2,13.89123306]
[1761394759039,0.001,3951.3,3951.2,14.79797985]
[1761394760072,0.001,3951.3,3951.2,13.89123306]
[1761394763592,0.001,3951.3,3951.2,14.39811306]
[1761394764179,0.001,3951.3,3951.2,15.8591576]
[1761394765385,0.001,3951.3,3951.2,14.49940029]
[1761394765593,0.001,3951.3,3951.2,15.85987393]
[1761394770090,0.001,3951.3,3951.2,14.49940029]
[1761394771201,0.001,3951.3,3951.2,9.14125317]
[1761394771373,0.1017,3951.3,3951.2,9.03996594]
[1761394773347,0.1017,3951.3,3951.2,9.94699985]
[1761394776317,0.001,3951.3,3951.2,9.94699985]
[1761394777908,0.1017,3951.3,3951.2,9.94699985]
[1761394778111,0.001,3951.3,3951.2,9.94699985]
[1761394779729,0.001,3951.3,3951.2,10.39889985]
[1761394780033,0.001,3951.3,3951.2,9.49186594]
[1761394782728,0.001,3951.3,3951.2,9.03996594]
[1761394782899,0.001,3951.3,3951.2,9.49186594]
[1761394783215,0.001,3951.3,3951.2,11.35900658]
[1761394783416,0.001,3951.3,3951.2,11.46029381]
[1761394784840,0.001,3951.3,3951.2,15.04568813]
[1761394786317,0.001,3951.3,3951.2,13.68542749]
[1761394786514,0.001,3951.3,3951.2,15.04558452]
[1761394787844,0.001,3951.3,3951.2,15.3237308]
[1761394788551,0.001,3951.3,3951.2,15.04558452]
[1761394793234,0.001,3951.3,3951.2,13.68542749]
[1761394794952,0.001,3951.3,3951.2,13.23352749]
[1761394795353,0.001,3951.3,3951.2,13.68542749]
[1761394797169,0.001,3951.3,3951.2,13.23352749]
[1761394800143,0.001,3951.3,3951.2,13.23352749]
[1761394801239,0.001,3951.3,3951.2,13.23252749]
[1761394804473,0.001,3952.1,3952.0,2.53036437]
[1761394804674,0.001,3952.1,3952.0,10.7678702]
[1761394805062,0.001,3952.1,3952.0,11.1998702]
[1761394805266,0.001,3952.1,3952.0,11.3823702]
[1761394806775,0.001,3952.1,3952.0,7.36497588]
[1761394806979,0.001,3952.1,3952.0,10.9503702]
[1761394807147,0.001,3952.1,3952.0,11.3823702]
[1761394807751,0.001,3952.1,3952.0,10.9503702]
[1761394808197,0.001,3952.1,3952.0,12.9720702]
[1761394809395,0.001,3952.1,3952.0,13.87749226]
[1761394809555,0.001,3952.1,3952.0,13.41099226]
[1761394809756,0.001,3952.1,3952.0,13.87749226]
[1761394810582,0.001,3952.1,3952.0,13.41099226]
[1761394814556,0.001,3952.1,3952.0,13.53739226]
[1761394815705,0.001,3952.1,3952.0,14.00389226]
[1761394818227,0.001,3952.1,3952.0,13.53739226]
[1761394818706,0.001,3952.1,3952.0,14.00389226]
[1761394819096,0.001,3952.1,3952.0,13.53739226]
[1761394820604,0.001,3952.1,3952.0,14.00389226]
[1761394821279,0.001,3952.1,3952.0,13.53739226]
[1761394824412,0.001,3952.1,3952.0,12.6319702]
[1761394827611,0.001,3952.1,3952.0,12.8852702]
[1761394827783,0.001,3952.1,3952.0,12.6319702]
[1761394830624,0.001,3952.1,3952.0,18.77501582]
[1761394830833,0.001,3952.1,3952.0,15.1896215]
[1761394832120,0.001,3952.1,3952.0,14.89505855]
[1761394832327,0.001,3952.1,3952.0,13.98963649]
[1761394832628,0.001,3952.1,3952.0,13.6053502]
[1761394833123,0.001,3952.1,3952.0,14.96458827]
[1761394833324,0.001,3952.1,3952.0,14.49808827]
[1761394833623,0.001,3952.1,3952.0,14.96458827]
[1761394834208,0.001,3952.1,3952.0,13.6053502]
[1761394842514,0.001,3952.1,3952.0,13.1388502]
[1761394842715,0.1033,3952.1,3952.0,4.06233944]
[1761394842912,0.1033,3952.1,3952.0,7.96080949]
[1761394843310,0.1033,3952.1,3952.0,9.51600949]
[1761394843722,0.1033,3952.1,3952.0,8.61003944]
[1761394843921,0.1033,3952.1,3952.0,9.28971176]
[1761394844517,0.1033,3952.1,3952.0,7.73451176]
[1761394846223,0.1033,3952.1,3952.0,7.05483944]
[1761394847011,0.1033,3952.1,3952.0,7.73451176]
[1761394847210,0.1033,3952.1,3952.0,7.05483944]
[1761394852912,0.1033,3952.1,3952.0,3.87983944]
[1761394853141,0.1033,3952.1,3952.0,6.92843944]
[1761394860273,0.001,3952.1,3952.0,6.92843944]
[1761394860447,0.1033,3952.1,3952.0,6.92843944]
[1761394863529,0.1033,3952.1,3952.0,5.70536437]
[1761394863777,0.1033,3952.1,3952.0,3.175]
[1761394864075,0.2297,3952.1,3952.0,3.175]
[1761394864538,0.2297,3952.1,3952.0,5.70536437]
[1761394865447,0.2297,3952.1,3952.0,3.175]
[1761394865862,0.2297,3952.1,3952.0,5.70536437]
[1761394880875,0.1274,3952.1,3952.0,5.70536437]
[1761394885889,0.001,3952.1,3952.0,5.70536437]
[1761394889412,0.001,3952.1,3952.0,6.13906437]
[1761394889718,0.001,3952.1,3952.0,7.08904746]
[1761394890707,0.001,3952.1,3952.0,6.96264746]
[1761394900843,0.001,3952.1,3952.0,7.08904746]
[1761394901554,0.001,3952.1,3952.0,6.65534746]
[1761394901739,0.001,3952.1,3952.0,5.70536437]
[1761394901942,0.1033,3952.1,3952.0,5.70536437]
[1761394903127,0.001,3952.1,3952.0,5.70536437]
[1761394920992,0.1033,3952.1,3952.0,5.70536437]
[1761394921963,0.2297,3952.1,3952.0,5.70536437]
[1761394926490,0.1274,3952.1,3952.0,5.70536437]
[1761394927003,0.2297,3952.1,3952.0,5.70536437]
[1761394931793,0.1274,3952.1,3952.0,5.70536437]
[1761394932390,0.2297,3952.1,3952.0,5.70536437]
[1761394933508,0.1274,3952.1,3952.0,5.70536437]
[1761394934274,0.1274,3952.1,3952.0,5.83276437]
[1761394943490,0.001,3952.1,3952.0,5.83276437]
[1761394943694,0.001,3952.1,3952.0,6.29426437]
[1761394944112,0.001,3952.1,3952.0,7.18937746]
[1761394950944,0.001,3952.1,3952.0,6.72787746]
[1761394951744,0.1033,3952.1,3952.0,5.83276437]
[1761394953416,0.1033,3952.1,3952.0,2.65776437]
[1761394953618,0.1033,3952.1,3952.0,5.83276437]
[1761394954544,0.001,3952.1,3952.0,5.83276437]
[1761394954918,0.1033,3952.1,3952.0,5.83276437]
[1761394955123,0.001,3952.1,3952.0,5.83276437]
[1761394955332,0.001,3952.1,3952.0,6.74977461]
[1761394955625,0.001,3952.1,3952.0,7.21127461]
[1761394956256,0.001,3952.1,3952.0,6.74977461]
[1761394958222,0.001,3952.1,3952.0,7.20197461]
[1761394959553,0.001,3952.1,3952.0,7.32837461]
[1761394959922,0.001,3952.1,3952.0,7.20197461]
[1761394960153,0.001,3952.1,3952.0,7.32837461]
[1761394960652,0.001,3952.1,3952.0,8.0088461]
[1761394961540,0.001,3952.1,3952.0,7.32837461]
[1761394962150,0.001,3952.1,3952.0,8.00789752]
[1761394962859,0.001,3952.1,3952.0,8.88357461]
[1761394964061,0.001,3952.1,3952.0,12.4696348]
[1761394964358,0.001,3952.1,3952.0,13.37560485]
[1761394965354,0.001,3952.1,3952.0,12.4696348]
[1761394965733,0.001,3952.1,3952.0,8.88357461]
[1761394971238,0.001,3952.1,3952.0,9.78954466]
[1761394972642,0.001,3952.1,3952.0,8.88357461]
[1761394974068,0.001,3952.1,3952.0,9.6958409]
[1761394974870,0.001,3952.1,3952.0,9.26405461]
[1761394980281,0.001,3952.1,3952.0,8.75717461]
[1761394980468,0.001,3952.1,3952.0,8.30497461]
[1761394981082,0.001,3952.1,3952.0,9.20993156]
[1761394982081,0.1,3952.1,3952.0,6.51155792]
[1761394982286,0.1,3952.1,3952.0,5.70536437]
[1761394984280,0.001,3952.1,3952.0,5.70536437]
[1761394985467,0.1,3952.1,3952.0,5.70536437]
[1761394989557,0.2264,3952.1,3952.0,5.70536437]
[1761394991980,0.2264,3952.1,3952.0,5.70436437]
[1761394996176,0.1274,3952.1,3952.0,5.70436437]
[1761394996866,0.2264,3952.1,3952.0,5.70436437]
[1761394999767,0.1274,3952.1,3952.0,5.70436437]
[1761395000594,0.001,3952.1,3952.0,5.70436437]
[1761395002672,0.001,3952.1,3952.0,6.15786437]
[1761395003607,0.001,3952.1,3952.0,6.65371682]
[1761395003799,0.001,3952.1,3952.0,7.23361682]
[1761395005400,0.001,3952.1,3952.0,7.91241037]
[1761395006311,0.001,3952.1,3952.0,8.03881037]
[1761395007187,0.001,3952.1,3952.0,7.36001682]
[1761395017497,0.001,3952.1,3952.0,8.26497377]
[1761395018319,0.001,3952.1,3952.0,7.36001682]
[1761395019520,0.001,3952.1,3952.0,6.90651682]
[1761395019824,0.001,3952.1,3952.0,5.83076437]
[1761395020192,0.001,3952.1,3952.0,6.50975268]
[1761395023221,0.001,3952.1,3952.0,5.83076437]
[1761395024437,0.001,3952.1,3952.0,6.95565268]
[1761395024653,0.001,3952.1,3952.0,6.27666437]
[1761395024847,0.001,3952.1,3952.0,7.33192199]
[1761395025255,0.001,3952.1,3952.0,8.0109103]
[1761395025984,0.001,3952.1,3952.0,7.33192199]
[1761395027285,0.001,3952.1,3952.0,10.0729903]
[1761395027425,0.001,3952.1,3952.0,9.39400199]
[1761395027826,0.001,3952.1,3952.0,9.49527153]
[1761395031777,0.001,3952.5,3952.0,9.49527153]
[1761395031778,0.001,3952.5,3952.4,3.03698828]
[1761395031949,0.001,3952.5,3952.4,13.74059644]
[1761395032271,0.001,3952.5,3952.4,13.71529536]
[1761395032573,0.001,3952.5,3952.4,13.81655336]
[1761395034561,0.001,3952.5,3952.4,13.48905125]
[1761395041988,0.001,3952.5,3952.4,13.61545125]
[1761395045697,0.001,3952.5,3952.4,14.51861589]
[1761395047716,0.001,3952.5,3952.4,13.61545125]
[1761395048617,0.001,3952.5,3952.4,14.51854715]
[1761395051343,0.001,3952.5,3952.4,14.37473965]
[1761395056428,0.001,3952.5,3952.4,15.73220015]
[1761395058349,0.001,3952.5,3952.4,14.37473965]
[1761395059163,0.001,3952.5,3952.4,13.61545125]
[1761395069342,0.001,3952.5,3952.4,13.16955125]
[1761395069665,0.001,3952.5,3952.4,13.63235125]
[1761395071044,0.001,3952.5,3952.4,13.16955125]
[1761395071672,0.001,3952.9,3952.8,4.08505225]